fUST/lending_fUST_20240417
["ID","MTS","AMOUNT","RATE_DAILY","PERIOD"]
[322813306,1713352243540,-239.43118904,0.00032,4]
[322813307,1713352243675,-3000.0,0.00032,4]
[322813308,1713352243685,-1164.51896777,0.00032712,30]
[322813309,1713352243694,-888.653985,0.00032877,2]
[322813310,1713352243703,-888.653985,0.00032877,2]
[322813311,1713352243712,-888.653985,0.00032877,2]
[322813312,1713352243721,-888.653985,0.00032877,2]
[322813313,1713352243731,-888.653985,0.00032877,2]
[322813314,1713352243740,-888.653985,0.00032877,2]
[322813315,1713352243750,-888.653985,0.00032877,2]
[322813316,1713352243759,-888.653985,0.00032877,2]
[322813317,1713352243769,-888.653985,0.00032877,2]
[322813318,1713352243778,-888.653985,0.00032877,2]
[322813319,1713352243787,-888.653985,0.00032877,2]
[322813320,1713352243796,-888.653985,0.00032877,2]
[322813321,1713352243805,-888.653985,0.00032877,2]
[322813322,1713352243814,-888.653985,0.00032877,2]
[322813323,1713352243823,-888.653985,0.00032877,2]
[322813324,1713352243832,-888.653985,0.00032877,2]
[322813325,1713352243841,-888.653985,0.00032877,2]
[322813326,1713352243850,-888.653985,0.00032877,2]
[322813327,1713352243859,-888.653985,0.00032877,2]
[322813328,1713352243869,-888.653986,0.00032877,2]
[322813329,1713352243878,-5200.0,0.000329,9]
[322813330,1713352243888,-196.0,0.00033,2]
[322813331,1713352243897,-196.0,0.00033,2]
[322813332,1713352243906,-1000.0,0.00033005,2]
[322813333,1713352243915,-442.628924,0.00033165,2]
[322813334,1713352243925,-219.541874,0.00033165,2]
[322813335,1713352243933,-151.0,0.0003333,2]
[322813336,1713352243942,-417.0,0.00033368,2]
[322813337,1713352243952,-465.62426375,0.00034,4]
[322813338,1713352243962,-6774.03366472,0.00034555,10]
[322813340,1713352243971,-2948.96689228,0.0003488,120]
[322813343,1713352243980,-2968.87,0.00034999,2]
[322813346,1713352243989,-2968.87,0.00034999,2]
[322813348,1713352243998,-2968.87,0.00034999,2]
[322813349,1713352244007,-2968.87,0.00034999,2]
[322813350,1713352244017,-2968.87,0.00034999,2]
[322813351,1713352244026,-2968.87,0.00034999,2]
[322813352,1713352244035,-2968.87,0.00034999,2]
[322813353,1713352244044,-2968.87,0.00034999,2]
[322813354,1713352244053,-2968.87,0.00034999,2]
[322813355,1713352244062,-2968.87,0.00034999,2]
[322813356,1713352244071,-597.24868455,0.00035,2]
[322813357,1713352244080,-154.90705577,0.00035,4]
[322813358,1713352244090,-12732.38586644,0.00035,4]
[322813359,1713352244099,-6869.95989293,0.00035,4]
[322813360,1713352244108,-498.64208688,0.00035,2]
[322813361,1713352244117,-389750.59456277,0.00035,30]
[322813362,1713352244126,-218.0,0.00035,10]
[322813363,1713352244135,-9516.05268297,0.00035,30]
[322813364,1713352244144,-739.82184036,0.000351,2]
[322813365,1713352244153,-565.30346311,0.00035616,2]
[322813366,1713352244162,-1760.362469,0.00035616,120]
[322813367,1713352244170,-210.4747673,0.0003589,2]
[322813368,1713352244180,-196.0,0.00036,2]
[322813369,1713352244188,-196.0,0.00036,2]
[322813370,1713352244197,-196.0,0.00036,2]
[322813371,1713352244206,-255.98461491,0.0003624,2]
[322813372,1713352244215,-1243.08924304,0.00036248,4]
[322813373,1713352244224,-417.0,0.00036368,2]
[322813374,1713352244233,-54099.7343,0.00036952,30]
[322813375,1713352244241,-2924.16055736,0.00037,2]
[322813376,1713352244250,-3000.0,0.000375,32]
[322813377,1713352244259,-3000.0,0.0003751,32]
[322813378,1713352244268,-3000.0,0.0003752,32]
[322813379,1713352244277,-3000.0,0.0003753,32]
[322813381,1713352244286,-3000.0,0.0003754,32]
[322813382,1713352244294,-3000.0,0.0003755,32]
[322813383,1713352244303,-3000.0,0.0003756,32]
[322813384,1713352244312,-3806.913403,0.0003757,32]
[322813385,1713352244321,-1769.86641168,0.0003813,2]
[322813386,1713352244330,-150.87929656,0.00038263,2]
[322813387,1713352244339,-500.24946377,0.00038356,2]
[322813388,1713352244350,-500.0,0.00038356,30]
[322813389,1713352244359,-500.0,0.00038356,30]
[322813390,1713352244367,-500.0,0.00038356,30]
[322813391,1713352244377,-500.0,0.00038356,30]
[322813392,1713352244386,-500.0,0.00038356,30]
[322813393,1713352244397,-500.0,0.00038356,30]
[322813394,1713352244406,-500.0,0.00038356,30]
[322813395,1713352244414,-500.0,0.00038356,30]
[322813396,1713352244423,-500.0,0.00038356,30]
[322813397,1713352244433,-500.0,0.00038356,30]
[322813398,1713352244442,-500.0,0.00038356,30]
[322813399,1713352244451,-500.0,0.00038356,30]
[322813400,1713352244459,-500.0,0.00038356,30]
[322813401,1713352244468,-500.0,0.00038356,30]
[322813402,1713352244477,-500.0,0.00038356,30]
[322813403,1713352244486,-583.13070165,0.00038356,30]
[322813404,1713352244495,-500.0,0.00038356,30]
[322813405,1713352244504,-500.0,0.00038356,30]
[322813406,1713352244513,-500.0,0.00038356,30]
[322813407,1713352244522,-500.0,0.00038356,30]
[322813408,1713352244531,-500.0,0.00038356,30]
[322813409,1713352244540,-500.0,0.00038356,30]
[322813410,1713352244549,-500.0,0.00038356,30]
[322813411,1713352244557,-500.0,0.00038356,30]
[322813412,1713352244566,-500.0,0.00038356,30]
[322813413,1713352244575,-500.0,0.00038356,30]
[322813414,1713352244584,-500.0,0.00038356,30]
[322813415,1713352244593,-415.21265721,0.00038356,30]
[322813416,1713352244602,-500.0,0.00038356,30]
[322813417,1713352244611,-507.78846085,0.00038356,30]
[322813418,1713352244621,-500.0,0.00038356,30]
[322813419,1713352244630,-500.0,0.00038356,30]
[322813420,1713352244639,-500.0,0.00038356,30]
[322813421,1713352244648,-500.0,0.00038356,30]
[322813422,1713352244656,-500.0,0.00038356,30]
[322813423,1713352244665,-500.0,0.00038356,30]
[322813424,1713352244674,-500.0,0.00038356,30]
[322813425,1713352244683,-500.0,0.00038356,30]
[322813426,1713352244691,-500.0,0.00038356,30]
[322813427,1713352244710,-500.0,0.00038356,30]
[322813428,1713352244718,-500.0,0.00038356,30]
[322813429,1713352244727,-500.0,0.00038356,30]
[322813430,1713352244736,-500.0,0.00038356,30]
[322813431,1713352244745,-500.0,0.00038356,30]
[322813432,1713352244753,-500.0,0.00038356,30]
[322813433,1713352244763,-500.0,0.00038356,30]
[322813434,1713352244771,-500.0,0.00038356,30]
[322813435,1713352244780,-177.73600583,0.00038356,30]
[322813436,1713352244789,-500.0,0.00038356,30]
[322813437,1713352244798,-399.3831436,0.00038356,30]
[322813438,1713352244806,-11753.85,0.00038356,30]
[322813439,1713352244815,-11753.85,0.00038356,30]
[322813440,1713352244824,-11753.85,0.00038356,30]
[322813441,1713352244833,-11753.85,0.00038356,30]
[322813442,1713352244841,-11753.85,0.00038356,30]
[322813443,1713352244854,-11753.85,0.00038356,30]
[322813444,1713352244863,-11753.85,0.00038356,30]
[322813445,1713352244872,-11753.85,0.00038356,30]
[322813446,1713352244882,-11753.85,0.00038356,30]
[322813447,1713352244891,-11753.85,0.00038356,30]
[322813448,1713352244900,-11753.85,0.00038356,30]
[322813449,1713352244910,-11753.85,0.00038356,30]
[322813450,1713352244919,-11753.85,0.00038356,30]
[322813451,1713352244929,-11753.85,0.00038356,30]
[322813452,1713352244939,-11753.85,0.00038356,30]
[322813453,1713352244948,-11753.85,0.00038356,30]
[322813454,1713352244958,-11753.85,0.00038356,30]
[322813455,1713352244967,-11753.85,0.00038356,30]
[322813456,1713352244976,-11753.85,0.00038356,30]
[322813457,1713352244985,-11753.85,0.00038356,30]
[322813458,1713352244994,-11753.85,0.00038356,30]
[322813459,1713352245003,-11753.85,0.00038356,30]
[322813460,1713352245012,-11753.85,0.00038356,30]
[322813461,1713352245023,-11753.93331409,0.00038356,30]
[322813462,1713352245032,-500.0,0.00038356,30]
[322813463,1713352245041,-500.0,0.00038356,30]
[322813464,1713352245050,-500.0,0.00038356,30]
[322813465,1713352245059,-500.0,0.00038356,30]
[322813466,1713352245068,-500.0,0.00038356,30]
[322813467,1713352245078,-276.8427483,0.00038356,30]
[322813468,1713352245087,-500.0,0.00038356,30]
[322813469,1713352245095,-500.0,0.00038356,30]
[322813470,1713352245104,-500.0,0.00038356,30]
[322813471,1713352245114,-500.0,0.00038356,30]
[322813472,1713352245123,-500.0,0.00038356,30]
[322813473,1713352245132,-500.0,0.00038356,30]
[322813474,1713352245141,-500.0,0.00038356,30]
[322813475,1713352245150,-500.0,0.00038356,30]
[322813476,1713352245159,-500.0,0.00038356,30]
[322813477,1713352245168,-500.0,0.00038356,30]
[322813478,1713352245177,-500.0,0.00038356,30]
[322813479,1713352245186,-175.96832369,0.00038356,30]
[322813480,1713352245195,-500.0,0.00038356,2]
[322813481,1713352245204,-500.0,0.00038356,2]
[322813482,1713352245214,-500.0,0.00038356,2]
[322813483,1713352245223,-525.85082443,0.00038356,2]
[322813484,1713352245232,-400.49560572,0.00038356,2]
[322813485,1713352245241,-10000.0,0.000385,15]
[322813486,1713352245251,-201.0,0.000387,30]
[322813487,1713352245261,-1000.0,0.00038736,2]
[322813488,1713352245270,-1000.0,0.00038785,2]
[322813489,1713352245280,-900.98367189,0.000388,2]
[322813490,1713352245289,-1000.0,0.00038828,2]
[322813491,1713352245298,-4104.48117093,0.000389,2]
[322813492,1713352245307,-301.75859313,0.00038906,4]
[322813493,1713352245317,-1000.0,0.00038917,2]
[322813494,1713352245326,-442.628924,0.00038933,2]
[322813495,1713352245338,-219.541874,0.00038933,2]
[322813496,1713352245348,-1000.0,0.00038935,2]
[322813497,1713352245358,-67562.07091327,0.00038999,3]
[322813498,1713352245367,-2018.82570745,0.00039,2]
[322813499,1713352245378,-196.0,0.00039,2]
[322813500,1713352245388,-196.0,0.00039,2]
[322813501,1713352245397,-196.0,0.00039,2]
[322813502,1713352245406,-417.0,0.00039368,2]
[322813503,1713352245417,-603.51718625,0.0003956,7]
[322813504,1713352245427,-5000.0,0.000398,14]
[322813505,1713352245436,-300.0,0.0003995,2]
[322813506,1713352245445,-1000.0,0.00039962,2]
[322813507,1713352245455,-153.0,0.00039973,2]
[322813508,1713352245549,-153.0,0.00039973,2]
[322813509,1713352245558,-201.67162124,0.0004,2]
[322813510,1713352245568,-2648.41228122,0.0004,2]
[322813511,1713352245577,-6374.30733721,0.0004,4]
[322813512,1713352245586,-1583.6835497,0.0004,2]
[322813513,1713352245595,-7467.5239423,0.0004,2]
[322813514,1713352245605,-10390.0,0.0004,2]
[322813515,1713352245615,-4795.95218771,0.0004,2]
[322813516,1713352245625,-359.32334992,0.0004,2]
[322813517,1713352245633,-995.18297923,0.0004,2]
[322813518,1713352245642,-30000.0,0.0004,2]
[322813519,1713352245652,-130561.19566939,0.0004,2]
[322813520,1713352245661,-1000.0,0.0004,2]
[322813521,1713352245671,-1000.0,0.0004,2]
[322813522,1713352245681,-1000.0,0.0004,2]
[322813523,1713352245691,-209.76912937,0.0004,120]
[322813524,1713352245700,-199.9562266,0.0004,120]
[322813525,1713352245714,-1453.38274835,0.00040027,11]
[322813526,1713352245723,-150.5,0.0004007,35]
[322813527,1713352245733,-1286.0,0.0004007,35]
[322813528,1713352245743,-150.5,0.0004008,35]
[322813529,1713352245752,-1286.0,0.0004008,35]
[322813530,1713352245762,-150.5,0.0004009,35]
[322813531,1713352245771,-1286.0,0.0004009,35]
[322813532,1713352245781,-120763.83162185,0.000401,2]
[322813533,1713352245791,-300.0,0.0004011,2]
[322813534,1713352245801,-68367.61161853,0.0004013,2]
[322813541,1713352246186,-163.98644275,0.00012796,2]
[322813542,1713352246196,-26128.725713,0.0004013,2]
[322813543,1713352246287,-52273.66266847,0.0004013,2]
[322813545,1713352246296,-151.90732859,0.00040148,2]
[322813547,1713352246306,-151.74,0.00040162,35]
[322813548,1713352246316,-150.5,0.00040162,35]
[322813549,1713352246326,-150.5,0.00040172,35]
[322813550,1713352246336,-150.5,0.00040172,35]
[322813551,1713352246348,-151.32,0.00040182,35]
[322813552,1713352246358,-150.5,0.00040182,35]
[322813553,1713352246368,-150.5,0.00040182,35]
[322813554,1713352246381,-158.43,0.00040184,35]
[322813555,1713352246391,-1286.0,0.00040197,35]
[322813556,1713352246401,-1286.0,0.00040207,35]
[322813557,1713352246412,-10000.0,0.00040214,30]
[322813558,1713352246421,-251.0,0.00040217,35]
[322813559,1713352246432,-1286.0,0.00040217,35]
[322813560,1713352246441,-1403.85889105,0.00040227,4]
[322813561,1713352246451,-4424.89729862,0.00040229,30]
[322813562,1713352246461,-154.87609912,0.0004023,4]
[322813563,1713352246471,-1159.98754209,0.0004023,4]
[322813564,1713352246480,-5540.82023084,0.0004023,20]
[322813565,1713352246490,-15512.26211636,0.0004023,120]
[322813566,1713352246499,-154.18418454,0.00040269,30]
[322813567,1713352246509,-4297.50099294,0.00040276,4]
[322813568,1713352246518,-215.51,0.0004031,35]
[322813569,1713352246528,-1572.52037217,0.00040311,4]
[322813570,1713352246538,-69401.81181788,0.00040592,7]
[322813579,1713352246944,-586.46221814,0.00012806,2]
[322813580,1713352278475,500.0,0.000267,120]
[322813588,1713352697485,750.07,0.00023,10]
[322813590,1713352765073,5359.47706663,0.00011705,2]
[322813591,1713352765106,9000.0,0.00011705,2]
[322813592,1713352765139,9000.0,0.00011705,2]
[322813593,1713352765171,1540.52293337,0.00011705,2]
[322813594,1713352765249,562.56,0.000252,30]
[322813597,1713352871797,421.92,0.00023,10]
[322813599,1713353197738,632.87,0.000252,30]
[322813602,1713353250645,7459.47706663,0.00011568,2]
[322813603,1713353250679,9000.0,0.00011568,2]
[322813604,1713353250711,8440.52293337,0.00011568,2]
[322813605,1713353299311,632.87,0.000252,30]
[322813606,1713353319485,154.86062544,0.00011568,2]
[322813607,1713353322825,154.86062544,0.00011568,2]
[322813608,1713353338801,154.86062544,0.00011568,2]
[322813609,1713353339432,155.11469317,0.00011568,2]
[322813610,1713353354826,238.11917982,0.00011568,2]
[322813611,1713353393988,8095.0,0.00012,2]
[322813668,1713353438723,-154.86062544,0.00012394,2]
[322813670,1713353438733,-654.45266231,0.00012394,2]
[322813671,1713353438743,-3742.37168361,0.00012394,2]
[322813672,1713353438752,-2584.94589356,0.00012395,2]
[322813673,1713353438761,-282.92215931,0.00012395,2]
[322813674,1713353438770,-207.65285215,0.00012395,2]
[322813675,1713353438780,-469.12528489,0.00012395,2]
[322813676,1713353438790,-154.86062544,0.00012395,2]
[322813677,1713353438799,-2942.63433838,0.00012395,2]
[322813678,1713353438809,-31262.99119214,0.00012395,2]
[322813679,1713353438818,-193.3820055,0.00012396,2]
[322813680,1713353438827,-154.86062544,0.00012396,2]
[322813681,1713353438836,-154.86062544,0.00012396,2]
[322813682,1713353438845,-163.98644275,0.00012396,2]
[322813683,1713353438855,-154.86062544,0.00012396,2]
[322813684,1713353438865,-154.86062544,0.00012396,2]
[322813685,1713353438874,-59089.3083695,0.00012396,2]
[322813686,1713353438883,-525.74547902,0.00012396,2]
[322813687,1713353438892,-7858.55367278,0.00012397,2]
[322813688,1713353438902,-154.86062544,0.00012397,2]
[322813689,1713353438911,-161.84978394,0.00012397,2]
[322813690,1713353438921,-154.86062544,0.00012397,2]
[322813691,1713353438931,-1934.55003292,0.00012397,2]
[322813692,1713353438940,-154.86062544,0.00012397,2]
[322813693,1713353438951,-203.92427323,0.00012398,2]
[322813694,1713353438960,-2125.76560283,0.00012398,2]
[322813695,1713353438970,-205.83283873,0.00012398,2]
[322813696,1713353438980,-467.87279548,0.00012398,2]
[322813697,1713353438989,-888.43676539,0.00012398,2]
[322813698,1713353438999,-154.86062544,0.00012398,2]
[322813699,1713353439008,-167.52776302,0.00012399,2]
[322813700,1713353439018,-563.87316233,0.00012399,2]
[322813701,1713353439027,-72389.02048931,0.00012399,2]
[322813702,1713353439037,-154.86062544,0.000124,2]
[322813703,1713353439046,-408.43488901,0.000124,2]
[322813704,1713353439056,-519.26461656,0.000124,2]
[322813705,1713353439065,-300.0,0.000124,2]
[322813706,1713353439075,-300.0,0.000124,2]
[322813707,1713353439085,-471.02610279,0.00012401,2]
[322813708,1713353439094,-211.83113783,0.00012401,2]
[322813709,1713353439104,-2621.14214872,0.00012401,2]
[322813710,1713353439113,-216.18479097,0.00012401,2]
[322813711,1713353439123,-154.86062544,0.00012401,2]
[322813712,1713353439133,-1488.61335239,0.00012402,2]
[322813713,1713353439144,-1575.3401522,0.00012402,2]
[322813714,1713353439153,-154.86062544,0.00012402,2]
[322813715,1713353439162,-623.0836212,0.0001241,2]
[322813716,1713353439172,-169.267581,0.00012413,2]
[322813717,1713353439182,-169.26758099,0.00012443,2]
[322813718,1713353439191,-169.26758099,0.00012473,2]
[322813719,1713353439202,-169.26758099,0.00012503,2]
[322813720,1713353439211,-185.34804765,0.00012505,2]
[322813721,1713353439221,-185.78883387,0.00012505,2]
[322813722,1713353439231,-160.60934883,0.00012505,2]
[322813723,1713353439240,-206.81708734,0.00012506,2]
[322813724,1713353439249,-252.50563863,0.00012512,2]
[322813725,1713353439259,-154.92704581,0.00012512,2]
[322813726,1713353439269,-361.42917162,0.00012512,2]
[322813727,1713353439278,-290.6635378,0.00012524,2]
[322813728,1713353439288,-169.26758099,0.00012533,2]
[322813729,1713353439297,-169.26758099,0.00012563,2]
[322813730,1713353439306,-1961.08138116,0.00012615,2]
[322813731,1713353439316,-309.61302161,0.00012622,2]
[322813732,1713353439325,-154.86062544,0.00012628,2]
[322813733,1713353439335,-154.86062544,0.0001263,2]
[322813734,1713353439345,-154.86062544,0.0001263,2]
[322813735,1713353439354,-211.15546602,0.00012657,2]
[322813736,1713353439364,-474.19997224,0.00012657,2]
[322813737,1713353439373,-294.33824874,0.00012658,2]
[322813738,1713353439383,-202.33119369,0.00012658,2]
[322813739,1713353439392,-309.55121334,0.00012663,2]
[322813740,1713353439401,-157.4992408,0.00012663,2]
[322813741,1713353439411,-860.55057955,0.000129,2]
[322813742,1713353439421,-420.0,0.00013607,2]
[322813743,1713353439432,-420.0,0.0001364,2]
[322813744,1713353439441,-252.19823313,0.00013698,2]
[322813745,1713353439450,-755.957329,0.00013699,2]
[322813746,1713353439459,-8867.0307211,0.00013699,2]
[322813747,1713353439468,-926.63477986,0.00014,2]
[322813748,1713353439477,-587.0,0.00014931,2]
[322813749,1713353439487,-351.0656644,0.00015,2]
[322813750,1713353439496,-937.89373734,0.00015,2]
[322813751,1713353439505,-2096.98803724,0.00015,2]
[322813752,1713353439514,-154.87609912,0.00015,2]
[322813753,1713353439523,-156.84586358,0.00015,2]
[322813754,1713353439532,-154.86062544,0.00015,2]
[322813755,1713353439542,-167.32835926,0.00015,2]
[322813756,1713353439551,-587.0,0.00015004,2]
[322813757,1713353439560,-290.66353778,0.00016105,2]
[322813758,1713353439569,-823.0,0.00016385,2]
[322813759,1713353439578,-823.0,0.00016504,2]
[322813760,1713353439587,-270.0,0.00017979,2]
[322813761,1713353439596,-1152.0,0.00018155,2]
[322813762,1713353439605,-602.61216035,0.000185,2]
[322813763,1713353439614,-1930.41110018,0.000189,2]
[322813764,1713353439623,-188.96976676,0.0001897,2]
[322813765,1713353439632,-1000.0,0.00019,2]
[322813766,1713353439641,-163.34335024,0.00019178,2]
[322813767,1713353439651,-500.0,0.00019178,2]
[322813768,1713353439661,-500.0,0.00019178,2]
[322813769,1713353439670,-500.0,0.00019178,2]
[322813770,1713353439680,-599.87704222,0.00019178,2]
[322813771,1713353439689,-500.0,0.00019178,2]
[322813772,1713353439700,-266.7220136,0.00019178,2]
[322813773,1713353439711,-500.0,0.00019178,2]
[322813774,1713353439721,-500.0,0.00019178,2]
[322813775,1713353439730,-397.29018029,0.00019178,2]
[322813776,1713353439739,-500.0,0.00019178,2]
[322813777,1713353439749,-500.0,0.00019178,2]
[322813778,1713353439758,-500.0,0.00019178,2]
[322813779,1713353439767,-500.0,0.00019178,2]
[322813780,1713353439776,-179.93458423,0.00019178,2]
[322813781,1713353439786,-287.83086608,0.00019178,2]
[322813782,1713353439795,-500.0,0.00019178,2]
[322813783,1713353439804,-500.0,0.00019178,2]
[322813784,1713353439813,-500.0,0.00019178,2]
[322813785,1713353439823,-500.0,0.00019178,2]
[322813786,1713353439905,-265.39770589,0.00019178,2]
[322813787,1713353439928,-470.09015215,0.00019178,2]
[322813788,1713353439938,-392.42320512,0.00019178,2]
[322813789,1713353439949,-500.0,0.00019178,2]
[322813790,1713353439959,-500.0,0.00019178,2]
[322813791,1713353439970,-178.00211012,0.00019178,2]
[322813792,1713353439979,-500.0,0.00019178,2]
[322813793,1713353439988,-164.800631,0.00019178,2]
[322813794,1713353439997,-170.015404,0.00019178,2]
[322813795,1713353440006,-290.66353778,0.00019687,2]
[322813796,1713353440015,-1613.0,0.0001997,2]
[322813797,1713353440024,-521.03498526,0.0002,2]
[322813798,1713353440033,-400.0,0.0002,2]
[322813799,1713353440043,-688.59429255,0.0002,2]
[322813800,1713353440052,-406.49971412,0.0002,2]
[322813801,1713353440062,-154.86062544,0.0002,2]
[322813802,1713353440071,-277.60171443,0.0002,2]
[322813803,1713353440080,-181.27172177,0.0002,4]
[322813804,1713353440089,-237.92490957,0.0002,2]
[322813805,1713353440098,-241.20667916,0.0002,2]
[322813806,1713353440107,-14058.30363324,0.0002,5]
[322813807,1713353440116,-200.0,0.0002,2]
[322813808,1713353440125,-755.957329,0.00020548,2]
[322813809,1713353440134,-611.8741466,0.00021918,2]
[322813810,1713353440144,-875.0,0.00021967,2]
[322813811,1713353440153,-158.857458,0.00022,2]
[322813812,1713353440162,-313.8132407,0.00022,2]
[322813813,1713353440171,-8001.49169221,0.00023,2]
[322813814,1713353440181,-243.24834116,0.00023,2]
[322813815,1713353440191,-290.66353778,0.00023268,2]
[322813817,1713353440200,-1930.41110018,0.000239,2]
[322813818,1713353440209,-304.24078065,0.00023999,2]
[322813819,1713353440218,-120573.14122696,0.00024,7]
[322813820,1713353440227,-154.86062544,0.000252,2]
[322813821,1713353440236,-3062.64298016,0.000255,4]
[322813822,1713353440245,-290.66353778,0.00026849,2]
[322813823,1713353440254,-79919.68461897,0.00026949,2]
[322813824,1713353440263,-154.87609912,0.00027,2]
[322813825,1713353440272,-8507.18295185,0.00027,2]
[322813826,1713353440281,-332.07459253,0.00027,2]
[322813827,1713353440290,-500.0,0.00027397,2]
[322813828,1713353440299,-500.0,0.00027397,2]
[322813830,1713353440308,-500.0,0.00027397,2]
[322813832,1713353440317,-500.0,0.00027397,2]
[322813834,1713353440326,-500.0,0.00027397,2]
[322813836,1713353440335,-500.0,0.00027397,2]
[322813838,1713353440345,-500.0,0.00027397,2]
[322813840,1713353440353,-500.0,0.00027397,2]
[322813842,1713353440362,-500.0,0.00027397,2]
[322813844,1713353440371,-500.0,0.00027397,2]
[322813846,1713353440381,-500.0,0.00027397,2]
[322813847,1713353440390,-500.0,0.00027397,2]
[322813848,1713353440399,-500.0,0.00027397,2]
[322813849,1713353440408,-500.0,0.00027397,2]
[322813850,1713353440417,-500.0,0.00027397,2]
[322813851,1713353440426,-500.0,0.00027397,2]
[322813852,1713353440436,-500.0,0.00027397,2]
[322813853,1713353440445,-500.0,0.00027397,2]
[322813854,1713353440454,-500.0,0.00027397,2]
[322813855,1713353440463,-500.0,0.00027397,2]
[322813856,1713353440472,-500.0,0.00027397,2]
[322813857,1713353440481,-500.0,0.00027397,2]
[322813858,1713353440490,-500.0,0.00027397,2]
[322813859,1713353440500,-500.0,0.00027397,2]
[322813860,1713353440509,-500.0,0.00027397,2]
[322813861,1713353440518,-500.0,0.00027397,2]
[322813862,1713353440527,-500.0,0.00027397,2]
[322813863,1713353440535,-630.80671795,0.00027397,2]
[322813864,1713353440544,-500.0,0.00027397,2]
[322813865,1713353440553,-165.152405,0.00027397,2]
[322813866,1713353440562,-1000.0,0.00027397,2]
[322813867,1713353440571,-164.707897,0.00027397,2]
[322813868,1713353440580,-166.666666,0.00027397,2]
[322813869,1713353440589,-755.44188678,0.000274,2]
[322813870,1713353440598,-800.8369821,0.000275,17]
[322813871,1713353440607,-851.52203001,0.00027565,2]
[322813872,1713353440616,-80000.0,0.00028,2]
[322813874,1713353440625,-292.35872206,0.00028,2]
[322813875,1713353440634,-166.666666,0.00028038,2]
[322813876,1713353440644,-166.666666,0.00028679,2]
[322813877,1713353440652,-1930.41110018,0.000289,2]
[322813878,1713353440662,-5000.0,0.00029,2]
[322813879,1713353440670,-166.666666,0.00029321,2]
[322813880,1713353440679,-3000.0,0.000296,4]
[322813881,1713353440688,-3000.0,0.000296,4]
[322813882,1713353440697,-3000.0,0.000296,4]
[322813883,1713353440710,-3000.0,0.000296,4]
[322813884,1713353440719,-3000.0,0.000296,4]
[322813885,1713353440729,-3000.0,0.000296,4]
[322813886,1713353440737,-3000.0,0.000296,4]
[322813887,1713353440748,-2086.0,0.000296,4]
[322813888,1713353440757,-320.85402885,0.000299,2]
[322813889,1713353440766,-320.8540288,0.000299,2]
[322813890,1713353440775,-320.8540288,0.000299,2]
[322813891,1713353440784,-320.8540288,0.000299,2]
[322813892,1713353440793,-320.8540288,0.000299,2]
[322813893,1713353440802,-320.8540288,0.000299,2]
[322813894,1713353440811,-320.8540288,0.000299,2]
[322813895,1713353440820,-320.8540288,0.000299,2]
[322813896,1713353440829,-166.666666,0.00029962,2]
[322813897,1713353440838,-4848.21770199,0.0003,5]
[322813898,1713353440847,-154.87609912,0.0003,2]
[322813899,1713353440856,-154.87609912,0.0003,4]
[322813900,1713353440866,-154.87609912,0.0003,4]
[322813901,1713353440875,-154.87609912,0.0003,4]
[322813902,1713353440884,-395.0,0.0003,2]
[322813903,1713353440894,-197.0490154,0.00030137,2]
[322813905,1713353440904,-166.666666,0.00030603,2]
[322813906,1713353440913,-320.4553623,0.000308,10]
[322813908,1713353440923,-417.0,0.00031034,2]
[322813910,1713353440933,-154.86062544,0.0003189,10]
[322813911,1713353440943,-191.18536531,0.00032,4]
[322813912,1713353440953,-1210.91030182,0.00032,3]